bitfinex/quotes_SOLUSD_20240727
["timestamp","ask_amount","ask_price","bid_price","bid_amount"]
[1722063368730,6.6265,185.27,185.23,11.42]
[1722063368927,6.6265,185.27,185.24,11.42]
[1722063370420,6.6265,185.27,185.21,11.42]
[1722063371740,45.0,185.26,185.21,11.42]
[1722063372226,45.0,185.26,185.15,15.7357]
[1722063372428,45.0,185.26,185.21,11.42]
[1722063372623,45.0,185.26,185.2,11.42]
[1722063373521,45.0,185.26,185.15,15.7357]
[1722063373721,45.0,185.26,185.2,11.42]
[1722063373924,56.42,185.26,185.2,11.42]
[1722063377251,45.0,185.26,185.2,11.42]
[1722063378522,11.42,185.25,185.16,20.0]
[1722063378723,11.42,185.23,185.1,15.3957]
[1722063378929,11.42,185.23,185.16,11.42]
[1722063379134,45.0,185.22,185.16,11.42]
[1722063381028,45.0,185.22,185.17,11.42]
[1722063381229,45.0,185.23,185.17,11.42]
[1722063382148,5.6501683,185.24,185.19,11.42]
[1722063383033,12.024,185.27,185.19,11.42]
[1722063383344,11.42,185.25,185.19,11.42]
[1722063383542,45.0,185.24,185.19,11.42]
[1722063383755,56.42,185.26,185.19,11.42]
[1722063385227,61.8178,185.26,185.19,11.42]
[1722063385550,5.3981,185.25,185.19,11.42]
[1722063385731,45.0,185.24,185.19,11.42]
[1722063386953,45.0,185.25,185.19,11.42]
[1722063387328,50.3981,185.25,185.19,11.42]
[1722063387571,61.8181,185.25,185.13,45.68]
[1722063387723,50.3981,185.25,185.18,11.42]
[1722063387929,11.42,185.24,185.17,11.42]
[1722063388129,45.0,185.23,185.17,11.42]
[1722063388941,45.0,185.23,185.18,11.42]
[1722063389545,45.0,185.24,185.18,11.42]
[1722063390759,45.0,185.24,185.19,11.42]
[1722063394651,45.0,185.24,185.18,11.42]
[1722063395068,45.0,185.24,185.17,11.42]
[1722063396053,45.0,185.24,185.18,11.42]
[1722063396279,45.0,185.24,185.19,11.42]
[1722063396469,45.0,185.25,185.2,11.42]
[1722063396779,45.0,185.25,185.21,11.42]
[1722063396944,45.0,185.26,185.21,11.42]
[1722063399363,45.0,185.26,185.14,20.0]
[1722063399364,45.0,185.26,185.2,11.42]
[1722063399947,61.8178,185.26,185.19,11.42]
[1722063400354,56.42,185.26,185.2,11.42]
[1722063400560,45.0,185.26,185.2,11.42]
[1722063405476,45.0,185.26,185.19,11.42]
[1722063406350,56.42,185.26,185.19,11.42]
[1722063406982,56.42,185.26,185.14,20.0]
[1722063406983,11.42,185.24,185.17,11.42]
[1722063407154,45.0,185.23,185.17,11.42]
[1722063407879,45.0,185.23,185.18,11.42]
[1722063408073,45.0,185.24,185.18,11.42]
[1722063408380,45.0,185.24,185.14,20.0]
[1722063408381,11.42,185.26,185.19,11.42]
[1722063408553,45.0,185.25,185.2,11.42]
[1722063408754,15.9938,185.28,185.22,11.42]
[1722063409556,15.9938,185.28,185.23,11.42]
[1722063410176,45.0,185.27,185.23,11.42]
[1722063410886,17.05075064,185.3,185.23,11.42]
[1722063410887,22.44735064,185.3,185.23,11.42]
[1722063411063,45.0,185.29,185.23,11.42]
[1722063411263,17.05075064,185.3,185.23,11.42]
[1722063412692,45.0,185.29,185.23,11.42]
[1722063413990,56.42,185.29,185.23,11.42]
[1722063414366,56.42,185.29,185.15,16.45549162]
[1722063414568,56.42,185.29,185.23,11.42]
[1722063414792,45.0,185.29,185.23,11.42]
[1722063416291,12.1005984,185.31,185.25,11.42]
[1722063416292,0.2980984,185.31,185.25,11.42]
[1722063416597,0.2980984,185.31,185.26,11.42]
[1722063417383,0.2980984,185.31,185.25,11.42]
[1722063421291,11.42,185.27,185.2,11.42]
[1722063421509,11.42,185.27,185.21,20.0]
[1722063422111,11.42,185.26,185.17,15.7133]
[1722063422498,11.42,185.26,185.19,11.42]
[1722063423922,11.42,185.27,185.2,11.42]
[1722063425212,45.0,185.26,185.2,11.42]
[1722063425817,11.42,185.24,185.17,11.42]
[1722063426918,11.42,185.25,185.18,11.42]
[1722063427109,45.0,185.24,185.18,11.42]
[1722063427310,45.0,185.24,185.19,11.42]
[1722063427512,45.0,185.25,185.2,11.42]
[1722063431212,45.0,185.26,185.2,11.42]
[1722063431623,56.42,185.26,185.2,11.42]
[1722063431921,11.42,185.22,185.15,11.42]
[1722063432402,45.0,185.21,185.15,11.42]
[1722063434622,20.0,185.25,185.18,11.42]
[1722063434623,11.42,185.24,185.18,11.42]
[1722063434826,31.42,185.25,185.18,11.42]
[1722063435133,11.42,185.25,185.18,11.42]
[1722063435310,11.42,185.24,185.18,11.42]
[1722063435713,11.42,185.24,185.13,27.1333]
[1722063435714,11.42,185.24,185.17,11.42]
[1722063436531,11.42,185.24,185.18,11.42]
[1722063436736,45.0,185.23,185.18,11.42]
[1722063437112,45.0,185.24,185.18,11.42]
[1722063437311,45.0,185.24,185.2,11.42]
[1722063437511,11.42,185.26,185.2,11.42]
[1722063437512,45.0,185.25,185.2,11.42]
[1722063437817,45.0,185.25,185.21,11.42]
[1722063438024,45.0,185.26,185.21,11.42]
[1722063438217,45.0,185.26,185.22,11.42]
[1722063438537,11.42,185.28,185.22,11.42]
[1722063439712,45.0,185.27,185.22,11.42]
[1722063440532,5.3989,185.23,185.13,15.7133]
[1722063440738,11.42,185.24,185.16,11.42]
[1722063440923,58.4935,185.28,185.15,11.42]
[1722063440924,56.42,185.22,185.15,11.42]
[1722063441131,56.42,185.22,185.13,15.7133]
[1722063441433,56.42,185.22,185.15,11.42]
[1722063442822,56.42,185.22,185.06,5.70699906]
[1722063442823,11.42,185.18,185.06,5.70699906]
[1722063443027,11.42,185.16,185.09,11.42]
[1722063443227,5.4011,185.15,185.08,11.42]
[1722063443425,45.0,185.14,185.08,11.42]
[1722063443825,45.0,185.14,185.09,11.42]
[1722063444346,45.0,185.15,185.09,11.42]
[1722063444518,45.0,185.15,185.1,11.42]
[1722063444721,45.0,185.16,185.1,11.42]
[1722063445952,61.8206,185.17,185.1,11.42]
[1722063446447,56.42,185.17,185.1,11.42]
[1722063447029,56.42,185.17,185.06,387.4]
[1722063447338,16.821,185.15,185.07,11.42]
[1722063447525,56.42,185.14,185.07,11.42]
[1722063448924,56.42,185.14,185.07,398.82]
[1722063449239,11.42,185.13,185.07,387.4]
[1722063449416,45.0,185.12,185.07,387.4]
[1722063449822,45.0,185.12,185.07,398.82]
[1722063450035,45.0,185.13,185.07,398.82]
[1722063450244,45.0,185.13,185.09,11.42]
[1722063450538,6.0936,185.17,185.1,11.42]
[1722063450539,17.5136,185.17,185.1,11.42]
[1722063450835,20.0,185.16,185.1,11.42]
[1722063451247,6.0936,185.17,185.11,11.42]
[1722063451450,15.3025,185.21,185.11,11.42]
[1722063451451,11.42,185.18,185.11,11.42]
[1722063451633,20.0,185.17,185.11,11.42]
[1722063451947,45.0,185.16,185.11,11.42]
[1722063453954,5.4001,185.18,185.14,11.42]
[1722063454124,15.3025,185.21,185.15,11.42]
[1722063454125,5.3997,185.2,185.15,11.42]
[1722063454327,15.3025,185.21,185.16,11.42]
[1722063454541,20.7018,185.21,185.17,11.42]
[1722063454747,20.7018,185.21,185.16,11.42]
[1722063455617,45.0,185.2,185.16,11.42]
[1722063455821,11.4926,185.22,185.16,11.42]
[1722063456022,5.399,185.22,185.16,11.42]
[1722063456222,5.3987,185.23,185.18,11.42]
[1722063456428,5.3984,185.24,185.18,11.42]
[1722063456634,5.3984,185.24,185.19,11.42]
[1722063457044,5.3987,185.23,185.19,11.42]
[1722063457232,20.7008,185.25,185.19,11.42]
[1722063457745,5.3984,185.24,185.19,11.42]
[1722063458555,5.3996,185.2,185.16,11.42]
[1722063459236,5.3993,185.21,185.15,11.42]
[1722063459436,45.0,185.2,185.15,11.42]
[1722063461447,45.0,185.21,185.15,11.42]
[1722063461849,56.42,185.21,185.11,16.2845]
[1722063462148,5.3995,185.2,185.14,11.42]
[1722063462322,45.0,185.19,185.13,11.42]
[1722063464626,45.0,185.19,185.11,16.2845]
[1722063464827,45.0,185.19,185.13,11.42]
[1722063465641,56.42,185.19,185.12,11.42]
[1722063467352,50.3998,185.19,185.12,11.42]
[1722063467652,45.0,185.19,185.13,11.42]
[1722063467859,15.3025,185.25,185.15,11.42]
[1722063468155,5.3988,185.23,185.15,11.42]
[1722063468455,31.42,185.22,185.15,11.42]
[1722063469357,45.0,185.21,185.15,11.42]
[1722063472555,50.3992,185.21,185.15,11.42]
[1722063473041,45.0,185.21,185.15,11.42]
[1722063474143,50.3993,185.21,185.15,11.42]
[1722063474347,50.3993,185.21,185.07,16.0398]
[1722063474647,50.3993,185.21,185.15,11.42]
[1722063475664,61.8193,185.21,185.14,11.42]
[1722063476351,50.3993,185.21,185.15,11.42]
[1722063479164,50.3993,185.21,185.14,11.42]
[1722063479460,45.0,185.21,185.13,11.42]
[1722063479651,56.42,185.21,185.13,11.42]
[1722063480269,45.0,185.21,185.15,11.42]
[1722063482063,11.42,185.2,185.07,16.0398]
[1722063482371,61.82,185.19,185.12,11.42]
[1722063483250,45.0,185.19,185.13,11.42]
[1722063483857,50.3998,185.19,185.08,20.0]
[1722063484164,50.3998,185.19,185.13,11.42]
[1722063484755,45.0,185.19,185.13,11.42]
[1722063485884,45.0,185.19,185.14,11.42]
[1722063486373,45.0,185.2,185.14,11.42]
[1722063488576,45.0,185.2,185.15,11.42]
[1722063488878,45.0,185.2,185.14,11.42]
[1722063489570,50.3995,185.2,185.14,11.42]
[1722063492870,50.3995,185.2,185.08,20.0]
[1722063493074,50.3995,185.2,185.14,11.42]
[1722063496686,50.3995,185.2,185.08,20.0]
[1722063497183,50.3995,185.2,185.14,11.42]
[1722063503167,50.3995,185.2,185.15,11.42]
[1722063504295,50.3995,185.2,185.14,11.42]
[1722063505391,33.7921,185.19,185.08,20.0]
[1722063505579,16.8207,185.17,185.1,11.42]
[1722063505773,45.0,185.16,185.1,11.42]
[1722063506184,45.0,185.16,185.04,20.0]
[1722063506694,45.0,185.16,185.1,11.42]
[1722063507673,45.0,185.16,185.04,67.8862577]
[1722063507674,56.42,185.16,185.04,2.2062577]
[1722063507987,16.8216,185.13,185.07,11.42]
[1722063508176,45.0,185.12,185.07,11.42]
[1722063508879,45.0,185.13,185.1,11.42]
[1722063509095,5.4008,185.16,185.1,11.42]
[1722063509292,22.3721,185.19,185.11,11.42]
[1722063509293,45.0,185.15,185.11,11.42]
[1722063509493,22.3721,185.19,185.13,11.42]
[1722063509803,27.772,185.19,185.13,11.42]
[1722063510776,45.0,185.18,185.13,11.42]
[1722063511081,50.4002,185.18,185.13,11.42]
[1722063512580,45.0,185.18,185.13,11.42]
[1722063512779,45.0,185.18,185.04,46.76039036]
[1722063512780,45.0,185.18,185.14,11.42]
[1722063513182,45.0,185.18,185.15,11.42]
[1722063515782,45.0,185.18,185.14,11.42]
[1722063516176,45.0,185.18,185.13,11.42]
[1722063517185,45.0,185.18,185.14,11.42]
[1722063518489,45.0,185.18,185.05,1.08034401]
[1722063518694,45.0,185.18,185.14,11.42]
[1722063521507,45.0,185.18,185.15,11.42]
[1722063521817,45.0,185.19,185.15,11.42]
[1722063522388,45.0,185.19,185.16,11.42]
[1722063524012,45.0,185.19,185.15,11.42]
[1722063524216,45.0,185.2,185.15,11.42]
[1722063524607,50.3995,185.2,185.15,11.42]
[1722063524918,50.3995,185.2,185.1,15.6587]
[1722063525123,50.3995,185.2,185.14,11.42]
[1722063526695,45.0,185.2,185.14,11.42]
[1722063526895,45.0,185.2,185.15,11.42]
[1722063527510,45.0,185.2,185.14,11.42]
[1722063529719,45.0,185.21,185.14,11.42]
[1722063531314,56.42,185.21,185.14,11.42]
[1722063533625,45.0,185.21,185.14,11.42]
[1722063533814,45.0,185.22,185.16,11.42]
[1722063534301,56.42,185.22,185.15,11.42]
[1722063534722,45.0,185.22,185.15,11.42]
[1722063534925,56.42,185.22,185.15,11.42]
[1722063537121,61.819,185.22,185.15,11.42]
[1722063539001,50.399,185.22,185.16,11.42]
[1722063540025,50.399,185.22,185.1,15.6587]
[1722063540325,50.399,185.22,185.16,11.42]
[1722063544432,50.399,185.22,185.11,20.0]
[1722063544433,61.819,185.22,185.15,11.42]
[1722063546138,50.399,185.22,185.15,11.42]
[1722063546636,45.0,185.22,185.11,1.08022078]
[1722063546829,45.0,185.22,185.18,11.42]
[1722063547329,45.0,185.22,185.17,11.42]
[1722063548825,45.0,185.22,185.16,11.42]
[1722063555641,56.42,185.22,185.1,15.6587]
[1722063555843,11.42,185.17,185.1,11.42]
[1722063556048,45.0,185.16,185.1,11.42]
[1722063558229,45.0,185.16,185.11,11.42]
[1722063560942,45.0,185.17,185.11,11.42]
[1722063563057,45.0,185.17,185.12,11.42]
[1722063563259,11.42,185.2,185.13,11.42]
[1722063564057,11.42,185.2,185.06,16.6259]
[1722063564058,11.42,185.19,185.12,11.42]
[1722063564751,45.0,185.18,185.12,11.42]
[1722063565659,45.0,185.18,185.13,11.42]
[1722063565861,45.0,185.19,185.13,11.42]
[1722063567570,56.42,185.19,185.06,16.6259]
[1722063567863,56.42,185.19,185.12,11.42]
[1722063568345,45.0,185.19,185.13,11.42]
[1722063568658,56.42,185.19,185.13,11.42]
[1722063568835,61.8198,185.19,185.13,11.42]
[1722063569236,11.42,185.17,185.1,11.42]
[1722063569437,45.0,185.16,185.1,11.42]
[1722063570267,45.0,185.16,185.11,11.42]
[1722063570468,45.0,185.17,185.11,11.42]
[1722063571545,45.0,185.17,185.06,16.6259]
[1722063571751,45.0,185.17,185.11,11.42]
[1722063574175,45.0,185.17,185.06,16.6259]
[1722063574475,45.0,185.17,185.11,11.42]
[1722063576763,45.0,185.17,185.06,16.6259]
[1722063576978,45.0,185.17,185.1,11.42]
[1722063577367,27.6561,185.18,185.12,11.42]
[1722063577368,16.2361,185.18,185.12,11.42]
[1722063578675,45.0,185.17,185.12,11.42]
[1722063579072,45.0,185.17,185.11,11.42]
[1722063580375,45.0,185.17,185.12,11.42]
[1722063584267,45.0,185.17,185.11,11.42]
[1722063586787,45.0,185.17,185.12,11.42]
[1722063587291,20.569,185.22,185.13,11.42]
[1722063587600,66.15970845,185.21,185.14,11.42]
[1722063587793,56.42,185.21,185.14,11.42]
[1722063588179,61.8193,185.21,185.14,11.42]
[1722063588872,11.42,185.2,185.13,11.42]
[1722063589079,45.0,185.19,185.13,11.42]
[1722063589287,56.42,185.19,185.12,11.42]
[1722063591982,56.42,185.19,185.11,11.42]
[1722063592378,11.42,185.18,185.11,11.42]
[1722063592583,45.0,185.17,185.11,11.42]
[1722063593209,45.0,185.17,185.13,11.42]
[1722063593382,11.42,185.2,185.13,11.42]
[1722063593580,45.0,185.19,185.13,11.42]
[1722063593781,56.42,185.19,185.12,11.42]
[1722063594505,45.0,185.19,185.12,11.42]
[1722063594707,56.42,185.19,185.12,11.42]
[1722063595703,45.0,185.19,185.13,11.42]
[1722063600206,45.0,185.19,185.12,11.42]
[1722063601504,45.0,185.19,185.13,11.42]
[1722063602004,15.1699,185.22,185.14,1.08024517]
[1722063602216,6.4071,185.23,185.19,11.42]
[1722063603512,6.4071,185.23,185.13,45.68]
[1722063603705,6.4071,185.23,185.18,11.42]
[1722063603907,6.4071,185.23,185.11,16.3195]
[1722063603908,5.3998,185.19,185.11,16.3195]
[1722063604119,11.42,185.18,185.11,11.42]
[1722063604408,45.0,185.17,185.12,11.42]
[1722063604711,45.0,185.18,185.12,11.42]
[1722063604884,11.42,185.16,185.06,16.3195]
[1722063605085,45.0,185.18,185.08,11.42]
[1722063605086,11.42,185.14,185.08,11.42]
[1722063605388,45.0,185.13,185.08,11.42]
[1722063605897,45.0,185.14,185.08,11.42]
[1722063606094,45.0,185.14,185.06,16.3195]
[1722063606291,11.42,185.13,185.01,24.55456272]
[1722063606612,45.0,185.12,185.06,11.42]
[1722063606820,45.0,185.12,185.07,11.42]
[1722063606998,45.0,185.13,185.07,11.42]
[1722063608324,45.0,185.13,185.1,11.42]
[1722063608691,45.0,185.13,185.11,11.42]
[1722063609196,6.2756,185.17,185.12,11.42]
[1722063609405,45.0,185.16,185.13,11.42]
[1722063609617,6.2756,185.17,185.13,11.42]
[1722063609913,5.3998,185.19,185.13,11.42]
[1722063610785,45.0,185.18,185.13,11.42]
[1722063611213,45.0,185.19,185.13,11.42]
[1722063611606,45.0,185.19,185.14,11.42]
[1722063612902,45.0,185.19,185.15,11.42]
[1722063613413,45.0,185.2,185.16,11.42]
[1722063613617,15.6876,185.24,185.17,11.42]
[1722063613915,27.1076,185.24,185.17,11.42]
[1722063614218,11.42,185.23,185.16,11.42]
[1722063615014,45.0,185.22,185.16,11.42]
[1722063615313,50.399,185.22,185.16,11.42]
[1722063615895,61.819,185.22,185.16,11.42]
[1722063616616,61.819,185.22,185.15,11.42]
[1722063617333,61.819,185.22,185.09,1.25017745]
[1722063617504,61.819,185.22,185.15,11.42]
[1722063617703,50.399,185.22,185.15,11.42]
[1722063618002,56.42,185.22,185.16,11.42]
[1722063618397,45.0,185.22,185.17,11.42]
[1722063618630,15.6876,185.24,185.17,11.42]
[1722063618631,45.0,185.23,185.17,11.42]
[1722063618925,56.42,185.23,185.16,11.42]
[1722063619103,61.8187,185.23,185.16,11.42]
[1722063619827,11.42,185.22,185.15,11.42]
[1722063620018,45.0,185.21,185.15,11.42]
[1722063623934,11.42,185.19,185.12,11.42]
[1722063624113,50.3995,185.21,185.13,11.42]
[1722063624433,16.8196,185.2,185.13,11.42]
[1722063624731,11.42,185.19,185.13,11.42]
[1722063624922,45.0,185.18,185.13,11.42]
[1722063625133,56.42,185.18,185.11,11.42]
[1722063625432,50.4001,185.18,185.08,16.3195]
[1722063625630,11.42,185.15,185.08,16.3195]
[1722063625930,45.0,185.14,185.08,27.7395]
[1722063626135,45.0,185.14,185.08,16.3195]
[1722063626318,45.0,185.14,185.09,11.42]
[1722063626625,45.0,185.14,185.08,27.7395]
[1722063627134,11.42,185.16,185.09,11.42]
[1722063627311,45.0,185.15,185.09,11.42]
[1722063627633,45.0,185.15,185.04,15.0548]
[1722063627845,11.42,185.14,185.07,11.42]
[1722063628132,45.0,185.13,185.07,11.42]
[1722063628303,11.42,185.12,185.06,11.42]
[1722063628811,56.42,185.13,185.06,11.42]
[1722063632414,11.42,185.12,185.05,11.42]
[1722063632606,45.0,185.11,185.05,11.42]
[1722063635425,45.0,185.11,185.06,11.42]
[1722063635611,45.0,185.11,185.0,15.0548]
[1722063635612,45.0,185.12,185.07,11.42]
[1722063635811,45.0,185.13,185.07,11.42]
[1722063637229,56.42,185.13,185.06,11.42]
[1722063639035,11.42,185.12,185.06,11.42]
[1722063639216,45.0,185.11,185.0,16.13549007]
[1722063639534,45.0,185.11,185.06,11.42]
[1722063640405,45.0,185.11,185.05,11.42]
[1722063641033,45.0,185.11,185.0,16.13549007]
[1722063641229,45.0,185.11,185.05,11.42]
[1722063643546,61.8223,185.11,185.04,11.42]
[1722063643837,56.42,185.11,185.04,11.42]
[1722063648939,11.42,185.1,185.0,15.0548]
[1722063649115,11.42,185.08,185.01,11.42]
[1722063649318,70.4028,185.09,185.01,11.42]
[1722063649319,56.42,185.07,185.01,11.42]
[1722063649524,56.42,185.07,184.98,387.4]
[1722063649830,45.0,185.07,185.01,11.42]
[1722063650031,45.0,185.07,185.02,11.42]
[1722063650242,45.0,185.08,185.02,11.42]
[1722063650431,45.0,185.08,185.03,11.42]
[1722063650619,45.0,185.09,185.03,11.42]
[1722063651843,45.0,185.09,184.98,387.4]
[1722063652135,56.42,185.09,185.02,11.42]
[1722063652720,45.0,185.09,185.02,11.42]
[1722063653035,56.42,185.09,185.02,11.42]
[1722063653617,56.42,185.09,184.98,387.4]
[1722063653618,45.0,185.09,185.03,11.42]
[1722063654741,45.0,185.09,184.98,387.4]
[1722063654742,56.42,185.09,184.98,387.4]
[1722063654919,56.42,185.09,185.02,11.42]
[1722063655123,45.0,185.09,185.03,11.42]
[1722063655317,45.0,185.1,185.04,11.42]
[1722063656625,45.0,185.1,185.05,11.42]
[1722063656829,45.0,185.1,185.06,11.42]
[1722063667665,15.3627,185.11,185.06,11.42]
[1722063668057,6.4634,185.12,185.06,11.42]
[1722063668263,45.0,185.11,185.06,11.42]
[1722063669651,45.0,185.11,185.02,16.2686]
[1722063669851,45.0,185.12,185.06,11.42]
[1722063670356,45.0,185.12,185.02,16.2686]
[1722063670357,61.8219,185.12,185.05,11.42]
[1722063670562,61.8219,185.12,185.04,11.42]
[1722063672478,11.42,185.11,185.04,11.42]
[1722063672660,56.42,185.1,185.03,11.42]
[1722063672860,45.0,185.09,185.03,11.42]
[1722063675180,45.0,185.1,185.03,11.42]
[1722063675564,45.0,185.1,184.97,16.2686]
[1722063675786,45.0,185.1,185.04,11.42]
[1722063679167,11.42,185.08,184.97,16.2686]
[1722063679373,56.42,185.07,185.0,11.42]
[1722063680179,45.0,185.07,185.0,11.42]
[1722063680353,45.0,185.07,185.01,11.42]
[1722063680556,6.424,185.14,185.06,11.42]
[1722063680774,6.424,185.14,185.1,11.42]
[1722063681086,16.2928,185.15,185.12,11.42]
[1722063681574,17.844,185.19,185.12,11.42]
[1722063681752,22.7168,185.25,185.16,11.42]
[1722063681958,11.42,185.24,185.17,11.42]
[1722063682157,22.7168,185.25,185.17,11.42]
[1722063682378,11.42,185.24,185.17,11.42]
[1722063682578,11.42,185.24,185.18,11.42]
[1722063684852,45.0,185.23,185.18,11.42]
[1722063685059,22.7168,185.25,185.18,11.42]
[1722063685264,34.1368,185.25,185.18,11.42]
[1722063685464,22.7168,185.25,185.19,11.42]
[1722063686763,45.0,185.24,185.19,11.42]
[1722063688186,5.3973,185.28,185.19,11.42]
[1722063688398,11.42,185.26,185.19,11.42]
[1722063688687,16.2928,185.29,185.21,11.42]
[1722063688688,11.42,185.28,185.21,11.42]
[1722063689868,16.2928,185.29,185.23,11.42]
[1722063690077,6.424,185.3,185.23,11.42]
[1722063690270,17.844,185.3,185.23,11.42]
[1722063690492,6.424,185.3,185.23,11.42]
[1722063690785,11.42,185.3,185.23,11.42]
[1722063691385,0.2980984,185.31,185.22,11.42]
[1722063691386,11.42,185.29,185.22,11.42]
[1722063692890,0.2980984,185.31,185.21,11.42]
[1722063692891,11.42,185.28,185.21,11.42]
[1722063693976,0.2980984,185.31,185.21,11.42]
[1722063694178,11.42,185.28,185.21,11.42]
[1722063695204,45.0,185.27,185.21,11.42]
[1722063695586,45.0,185.27,185.2,27.4662]
[1722063695901,11.42,185.28,185.2,27.4662]
[1722063696193,0.2980984,185.31,185.21,11.42]
[1722063696378,11.42,185.28,185.21,11.42]
[1722063696572,45.2980984,185.31,185.21,11.42]
[1722063696772,11.42,185.28,185.21,11.42]
[1722063697478,11.42,185.25,185.2,16.0462]
[1722063697681,11.42,185.24,185.17,17.948]
[1722063697997,45.2980984,185.31,185.19,11.42]
[1722063698173,11.42,185.28,185.21,11.42]
[1722063698373,45.0,185.27,185.21,11.42]
[1722063698772,11.42,185.28,185.21,11.42]
[1722063699092,0.2980984,185.31,185.23,11.42]
[1722063699477,11.42,185.3,185.23,11.42]
[1722063699677,45.0,185.29,185.23,11.42]
[1722063700304,56.42,185.29,185.22,11.42]
[1722063700794,0.2980984,185.31,185.25,11.42]
[1722063701295,11.7180984,185.31,185.24,11.42]
[1722063701492,11.42,185.3,185.23,26.849]
[1722063704176,0.2980984,185.31,185.23,26.849]
[1722063704377,11.42,185.3,185.23,26.849]
[1722063704878,11.42,185.3,185.23,15.429]
[1722063705096,45.0,185.29,185.23,15.429]
[1722063705274,45.0,185.29,185.23,26.849]
[1722063705471,11.42,185.28,185.21,11.42]
[1722063706406,56.42,185.29,185.22,11.42]
[1722063706590,45.0,185.29,185.22,11.42]
[1722063706986,0.2980984,185.31,185.22,11.42]
[1722063707192,11.42,185.29,185.22,11.42]
[1722063707592,11.42,185.3,185.23,11.42]
[1722063707992,11.42,185.3,185.22,11.42]
[1722063708196,11.42,185.29,185.21,11.42]
[1722063709786,11.42,185.29,185.22,1.07957558]
[1722063710085,11.42,185.29,185.21,11.42]
[1722063710282,11.42,185.29,185.22,11.42]
[1722063711308,0.2980984,185.31,185.19,15.429]
[1722063711309,11.42,185.28,185.19,15.429]
[1722063711486,11.42,185.28,185.21,11.42]
[1722063712702,11.42,185.29,185.21,11.42]
[1722063712900,11.42,185.29,185.22,12.49959171]
[1722063713608,11.42,185.29,185.22,11.42]